[Event "Titled Tuesday Blitz May 10 Late 2022"]
[White "Demchenko, Anton"]
[Black "Barria Zuniga, Daniel"]
[WhiteFideId "4160258"]
[BlackFideId "3400816"]
[WhiteElo "2539"]
[BlackElo "2414"]
[Result "1/2-1/2"]
[Round "04"]
[TimeControl "180+1"]
[Date "2022.05.10"]
[WhiteClock "0:00:05"]
[BlackClock "0:00:08"]

1. e4 {[%clk 0:02:57]}  e6 {[%clk 0:02:57]} 2. d4 {[%clk 0:02:57]}  d5 {[%clk 0:02:57]} 3. Nc3 {[%clk 0:02:57]}  Bb4 {[%clk 0:02:56]} 4. e5 {[%clk 0:02:57]}  Ne7 {[%clk 0:02:56]} 5. a3 {[%clk 0:02:57]}  Bxc3+ {[%clk 0:02:56]} 6. bxc3 {[%clk 0:02:58]}  c5 {[%clk 0:02:57]} 7. Nf3 {[%clk 0:02:58]}  Qa5 {[%clk 0:02:55]} 8. Bd2 {[%clk 0:02:55]}  Nd7 {[%clk 0:02:56]} 9. a4 {[%clk 0:02:48]}  h6 {[%clk 0:02:52]} 10. Be2 {[%clk 0:02:47]}  c4 {[%clk 0:02:50]} 11. O-O {[%clk 0:02:40]}  Nb6 {[%clk 0:02:50]} 12. Qc1 {[%clk 0:02:39]}  Nxa4 {[%clk 0:02:49]} 13. Qa3 {[%clk 0:02:38]}  Bd7 {[%clk 0:02:38]} 14. Rfb1 {[%clk 0:02:28]}  b5 {[%clk 0:02:37]} 15. g3 {[%clk 0:02:24]}  a6 {[%clk 0:02:31]} 16. Nh4 {[%clk 0:02:24]}  Qd8 {[%clk 0:02:18]} 17. Ng2 {[%clk 0:02:23]}  O-O {[%clk 0:02:16]} 18. Nf4 {[%clk 0:02:23]}  Nc6 {[%clk 0:02:15]} 19. Nh5 {[%clk 0:02:22]}  Qe7 {[%clk 0:01:47]} 20. Qc1 {[%clk 0:02:22]}  f5 {[%clk 0:01:46]} 21. exf6 {[%clk 0:02:20]}  Rxf6 {[%clk 0:01:46]} 22. Nxf6+ {[%clk 0:02:11]}  Qxf6 {[%clk 0:01:47]} 23. Rxa4 {[%clk 0:01:57]}  bxa4 {[%clk 0:01:43]} 24. Qa3 {[%clk 0:01:58]}  Qe7 {[%clk 0:01:19]} 25. Qa1 {[%clk 0:01:58]}  Rb8 {[%clk 0:01:09]} 26. Re1 {[%clk 0:01:59]}  Na7 {[%clk 0:00:55]} 27. Bf4 {[%clk 0:01:48]}  Rb6 {[%clk 0:00:51]} 28. Bf3 {[%clk 0:01:46]}  Qf8 {[%clk 0:00:47]} 29. Bg4 {[%clk 0:01:30]}  a3 {[%clk 0:00:46]} 30. h3 {[%clk 0:01:04]}  Nb5 {[%clk 0:00:37]} 31. Be5 {[%clk 0:00:56]}  Qf7 {[%clk 0:00:32]} 32. Kg2 {[%clk 0:00:50]}  Qg6 {[%clk 0:00:32]} 33. Re2 {[%clk 0:00:47]}  a5 {[%clk 0:00:29]} 34. Bf3 {[%clk 0:00:45]}  a4 {[%clk 0:00:29]} 35. h4 {[%clk 0:00:46]}  Qf7 {[%clk 0:00:24]} 36. Re3 {[%clk 0:00:45]}  Qf5 {[%clk 0:00:23]} 37. Bd1 {[%clk 0:00:42]}  Be8 {[%clk 0:00:19]} 38. g4 {[%clk 0:00:37]}  Qf8 {[%clk 0:00:18]} 39. h5 {[%clk 0:00:36]}  Qe7 {[%clk 0:00:17]} 40. Rg3 {[%clk 0:00:32]}  Nd6 {[%clk 0:00:15]} 41. f3 {[%clk 0:00:30]}  Nf7 {[%clk 0:00:15]} 42. Bf4 {[%clk 0:00:30]}  e5 {[%clk 0:00:16]} 43. Be3 {[%clk 0:00:24]}  e4 {[%clk 0:00:15]} 44. f4 {[%clk 0:00:25]}  Rb2 {[%clk 0:00:12]} 45. g5 {[%clk 0:00:17]}  hxg5 {[%clk 0:00:12]} 46. fxg5 {[%clk 0:00:17]}  Bd7 {[%clk 0:00:09]} 47. Bf4 {[%clk 0:00:07]}  Qe6 {[%clk 0:00:07]} 48. g6 {[%clk 0:00:05]}  Nd6 {[%clk 0:00:07]} 49. Bg4 {[%clk 0:00:05]}  Nf5 {[%clk 0:00:07]} 50. Qxa3 {[%clk 0:00:04]}  e3 {[%clk 0:00:06]} 51. Qxb2 {[%clk 0:00:03]}  Qe4+ {[%clk 0:00:07]} 52. Kh3 {[%clk 0:00:03]}  Qxf4 {[%clk 0:00:07]} 53. Bxf5 {[%clk 0:00:03]}  Bxf5+ {[%clk 0:00:08]} 54. Kh2 {[%clk 0:00:03]}  Qf2+ {[%clk 0:00:08]} 55. Rg2 {[%clk 0:00:03]}  Qh4+ {[%clk 0:00:08]} 56. Kg1 {[%clk 0:00:04]}  Qe1+ {[%clk 0:00:08]} 57. Kh2 {[%clk 0:00:04]}  Qh4+ {[%clk 0:00:08]} 58. Kg1 {[%clk 0:00:05]}  Qe1+ {[%clk 0:00:08]} 59. Kh2 {[%clk 0:00:05]}  Qh4+ {[%clk 0:00:08]} 1/2-1/2


[Site "https://www.chess.com"]

[Event "Titled Tuesday Blitz May 10 Late 2022"]
[White "Dourerassou, Jonathan"]
[Black "Przybylski, Wojciech"]
[WhiteFideId "628050"]
[BlackFideId "1117599"]
[WhiteElo "2698"]
[BlackElo "2420"]
[Result "1-0"]
[Round "04"]
[TimeControl "180+1"]
[Date "2022.05.11"]
[WhiteClock "0:00:52"]
[BlackClock "0:00:02"]

1. e4 {[%clk 0:03:00]}  e5 {[%clk 0:02:46]} 2. Nf3 {[%clk 0:02:59]}  Nc6 {[%clk 0:02:46]} 3. Nc3 {[%clk 0:03:00]}  Nf6 {[%clk 0:02:45]} 4. Bb5 {[%clk 0:03:00]}  Nd4 {[%clk 0:02:44]} 5. Nxd4 {[%clk 0:02:59]}  exd4 {[%clk 0:02:44]} 6. Nd5 {[%clk 0:02:59]}  c6 {[%clk 0:02:40]} 7. Nxf6+ {[%clk 0:02:58]}  Qxf6 {[%clk 0:02:39]} 8. Bc4 {[%clk 0:02:59]}  d6 {[%clk 0:02:32]} 9. O-O {[%clk 0:02:58]}  Be6 {[%clk 0:02:30]} 10. Bxe6 {[%clk 0:02:57]}  fxe6 {[%clk 0:02:30]} 11. f4 {[%clk 0:02:56]}  Be7 {[%clk 0:02:25]} 12. d3 {[%clk 0:02:49]}  O-O {[%clk 0:02:21]} 13. Bd2 {[%clk 0:02:46]}  c5 {[%clk 0:02:16]} 14. Qg4 {[%clk 0:02:46]}  Qg6 {[%clk 0:02:14]} 15. Qh3 {[%clk 0:02:42]}  Rf7 {[%clk 0:02:10]} 16. Rf3 {[%clk 0:02:42]}  Raf8 {[%clk 0:02:00]} 17. Raf1 {[%clk 0:02:41]}  d5 {[%clk 0:01:43]} 18. Rg3 {[%clk 0:02:33]}  Qf6 {[%clk 0:01:43]} 19. f5 {[%clk 0:02:20]}  dxe4 {[%clk 0:01:35]} 20. dxe4 {[%clk 0:02:19]}  Qe5 {[%clk 0:01:19]} 21. Re1 {[%clk 0:02:03]}  exf5 {[%clk 0:00:53]} 22. exf5 {[%clk 0:02:04]}  Qc7 {[%clk 0:00:43]} 23. Qg4 {[%clk 0:01:45]}  Bd6 {[%clk 0:00:40]} 24. Rf3 {[%clk 0:01:34]}  Qd7 {[%clk 0:00:30]} 25. Ref1 {[%clk 0:01:31]}  c4 {[%clk 0:00:25]} 26. Kh1 {[%clk 0:01:28]}  Be7 {[%clk 0:00:18]} 27. Qe4 {[%clk 0:01:24]}  Bf6 {[%clk 0:00:17]} 28. g4 {[%clk 0:01:24]}  Re8 {[%clk 0:00:16]} 29. Qf4 {[%clk 0:01:24]}  h6 {[%clk 0:00:11]} 30. Qg3 {[%clk 0:01:23]}  Be5 {[%clk 0:00:09]} 31. Qg2 {[%clk 0:01:22]}  c3 {[%clk 0:00:09]} 32. bxc3 {[%clk 0:01:21]}  dxc3 {[%clk 0:00:09]} 33. Bxc3 {[%clk 0:01:19]}  Bxc3 {[%clk 0:00:08]} 34. Rxc3 {[%clk 0:01:20]}  Rfe7 {[%clk 0:00:07]} 35. Rd3 {[%clk 0:01:18]}  Qc7 {[%clk 0:00:05]} 36. f6 {[%clk 0:01:17]}  Re2 {[%clk 0:00:03]} 37. f7+ {[%clk 0:01:13]}  Qxf7 {[%clk 0:00:03]} 38. Rxf7 {[%clk 0:01:12]}  Rxg2 {[%clk 0:00:02]} 39. Rxg7+ {[%clk 0:01:03]}  Kxg7 {[%clk 0:00:03]} 40. Kxg2 {[%clk 0:01:03]}  Re2+ {[%clk 0:00:03]} 41. Kg3 {[%clk 0:01:03]}  Rxc2 {[%clk 0:00:04]} 42. a3 {[%clk 0:01:03]}  Rc7 {[%clk 0:00:03]} 43. Kh4 {[%clk 0:01:02]}  a5 {[%clk 0:00:03]} 44. Rd5 {[%clk 0:01:02]}  b6 {[%clk 0:00:03]} 45. Rb5 {[%clk 0:01:01]}  Rc6 {[%clk 0:00:03]} 46. a4 {[%clk 0:01:01]}  Rd6 {[%clk 0:00:03]} 47. Kh5 {[%clk 0:01:00]}  Rc6 {[%clk 0:00:03]} 48. Kh4 {[%clk 0:01:00]}  Rd6 {[%clk 0:00:03]} 49. h3 {[%clk 0:01:00]}  Rc6 {[%clk 0:00:03]} 50. Re5 {[%clk 0:01:01]}  Rd6 {[%clk 0:00:03]} 51. Re7+ {[%clk 0:01:01]}  Kg6 {[%clk 0:00:03]} 52. Rb7 {[%clk 0:01:02]}  Rc6 {[%clk 0:00:03]} 53. Kg3 {[%clk 0:01:01]}  Rd6 {[%clk 0:00:03]} 54. h4 {[%clk 0:01:01]}  Rc6 {[%clk 0:00:03]} 55. Kf3 {[%clk 0:01:02]}  Rc3+ {[%clk 0:00:03]} 56. Kf2 {[%clk 0:01:01]}  Rc6 {[%clk 0:00:02]} 57. Ke3 {[%clk 0:01:01]}  Re6+ {[%clk 0:00:02]} 58. Kd4 {[%clk 0:01:00]}  Rf6 {[%clk 0:00:03]} 59. Ke5 {[%clk 0:01:00]}  Rc6 {[%clk 0:00:03]} 60. h5+ {[%clk 0:00:55]}  Kg5 {[%clk 0:00:03]} 61. Rg7+ {[%clk 0:00:56]}  Kh4 {[%clk 0:00:03]} 62. Rg6 {[%clk 0:00:56]}  Rc4 {[%clk 0:00:03]} 63. g5 {[%clk 0:00:52]}  hxg5 {[%clk 0:00:02]} 64. h6 {[%clk 0:00:52]}  Kh5 {[%clk 0:00:02]} 65. h7 {[%clk 0:00:53]}  Rc5+ {[%clk 0:00:02]} 66. Kd4 {[%clk 0:00:52]}  Rc8 {[%clk 0:00:02]} 67. Rg8 {[%clk 0:00:52]} 1-0


[Site "https://www.chess.com"]

[Event "Titled Tuesday Blitz May 10 Late 2022"]
[White "Erdogdu, Mert"]
[Black "Mortazavi, Ali"]
[WhiteFideId "6301495"]
[BlackFideId "401323"]
[WhiteElo "2668"]
[BlackElo "2457"]
[Result "0-1"]
[Round "04"]
[TimeControl "180+1"]
[Date "2022.05.11"]
[WhiteClock "0:00:03"]
[BlackClock "0:00:07"]

1. e4 {[%clk 0:03:00]}  c6 {[%clk 0:02:59]} 2. d4 {[%clk 0:03:00]}  d5 {[%clk 0:03:00]} 3. exd5 {[%clk 0:03:01]}  cxd5 {[%clk 0:03:01]} 4. c4 {[%clk 0:03:02]}  Nf6 {[%clk 0:03:01]} 5. Nc3 {[%clk 0:03:02]}  g6 {[%clk 0:03:02]} 6. Qb3 {[%clk 0:03:03]}  Bg7 {[%clk 0:03:02]} 7. cxd5 {[%clk 0:03:03]}  O-O {[%clk 0:03:03]} 8. Nge2 {[%clk 0:03:03]}  Na6 {[%clk 0:03:00]} 9. g3 {[%clk 0:03:03]}  b6 {[%clk 0:02:58]} 10. Bg2 {[%clk 0:03:01]}  Nc7 {[%clk 0:02:56]} 11. d6 {[%clk 0:02:51]}  exd6 {[%clk 0:02:55]} 12. O-O {[%clk 0:02:49]}  Rb8 {[%clk 0:02:47]} 13. Bf4 {[%clk 0:02:36]}  Nh5 {[%clk 0:02:37]} 14. Be3 {[%clk 0:02:33]}  Ba6 {[%clk 0:02:37]} 15. Rfd1 {[%clk 0:02:32]}  Re8 {[%clk 0:02:34]} 16. Rac1 {[%clk 0:02:28]}  Nf6 {[%clk 0:02:28]} 17. h3 {[%clk 0:02:20]}  Rc8 {[%clk 0:02:10]} 18. Nf4 {[%clk 0:02:18]}  Ne6 {[%clk 0:01:56]} 19. Nxe6 {[%clk 0:02:08]}  Rxe6 {[%clk 0:01:55]} 20. Qa4 {[%clk 0:02:05]}  Bc4 {[%clk 0:01:49]} 21. Qxa7 {[%clk 0:02:01]}  Nh5 {[%clk 0:01:33]} 22. g4 {[%clk 0:01:33]}  Ng3 {[%clk 0:01:32]} 23. Rd2 {[%clk 0:01:24]}  Rxe3 {[%clk 0:01:17]} 24. fxe3 {[%clk 0:01:24]}  Qg5 {[%clk 0:01:13]} 25. Re1 {[%clk 0:01:23]}  h5 {[%clk 0:01:09]} 26. gxh5 {[%clk 0:01:15]}  Nf5 {[%clk 0:01:05]} 27. Qb7 {[%clk 0:01:00]}  Re8 {[%clk 0:01:02]} 28. Qc6 {[%clk 0:00:58]}  Rxe3 {[%clk 0:00:53]} 29. Red1 {[%clk 0:00:44]}  Nh4 {[%clk 0:00:32]} 30. Rf2 {[%clk 0:00:34]}  Be6 {[%clk 0:00:26]} 31. hxg6 {[%clk 0:00:32]}  fxg6 {[%clk 0:00:26]} 32. Ne4 {[%clk 0:00:24]}  Qh5 {[%clk 0:00:21]} 33. Qe8+ {[%clk 0:00:20]}  Kh7 {[%clk 0:00:21]} 34. Qxe6 {[%clk 0:00:20]}  Qxd1+ {[%clk 0:00:21]} 35. Kh2 {[%clk 0:00:19]}  Qxd4 {[%clk 0:00:11]} 36. Ng5+ {[%clk 0:00:13]}  Kh6 {[%clk 0:00:11]} 37. Nf7+ {[%clk 0:00:13]}  Kh7 {[%clk 0:00:11]} 38. Ng5+ {[%clk 0:00:09]}  Kh6 {[%clk 0:00:11]} 39. Nf7+ {[%clk 0:00:08]}  Kh5 {[%clk 0:00:11]} 40. Qg4+ {[%clk 0:00:09]}  Qxg4 {[%clk 0:00:11]} 41. hxg4+ {[%clk 0:00:10]}  Kxg4 {[%clk 0:00:12]} 42. Bh3+ {[%clk 0:00:09]}  Kh5 {[%clk 0:00:12]} 43. Bf1 {[%clk 0:00:08]}  Nf3+ {[%clk 0:00:12]} 44. Kg2 {[%clk 0:00:08]}  Nh4+ {[%clk 0:00:12]} 45. Kh1 {[%clk 0:00:08]}  Re1 {[%clk 0:00:12]} 46. Nxd6 {[%clk 0:00:08]}  Bd4 {[%clk 0:00:12]} 47. Rf8 {[%clk 0:00:07]}  Rb1 {[%clk 0:00:10]} 48. b4 {[%clk 0:00:07]}  Rb2 {[%clk 0:00:10]} 49. Nf7 {[%clk 0:00:06]}  Kg4 {[%clk 0:00:10]} 50. Nd6 {[%clk 0:00:05]}  Nf3 {[%clk 0:00:10]} 51. Rxf3 {[%clk 0:00:03]}  Kxf3 {[%clk 0:00:10]} 52. Nc4 {[%clk 0:00:04]}  Rxa2 {[%clk 0:00:09]} 53. b5 {[%clk 0:00:04]}  Kg3 {[%clk 0:00:09]} 54. Nd6 {[%clk 0:00:03]}  Rh2# {[%clk 0:00:07]} 0-1


[Site "https://www.chess.com"]

[Event "Titled Tuesday Blitz May 10 Late 2022"]
[White "Fawzy, Adham"]
[Black "Izzat, Kanan"]
[WhiteFideId "10613129"]
[BlackFideId "13405209"]
[WhiteElo "2546"]
[BlackElo "2362"]
[Result "0-1"]
[Round "04"]
[TimeControl "180+1"]
[Date "2022.05.10"]
[WhiteClock "0:00:20"]
[BlackClock "0:00:55"]

1. e4 {[%clk 0:03:00]}  e5 {[%clk 0:02:59]} 2. Nf3 {[%clk 0:02:53]}  Nf6 {[%clk 0:02:59]} 3. Nxe5 {[%clk 0:02:50]}  d6 {[%clk 0:02:59]} 4. Nf3 {[%clk 0:02:51]}  Nxe4 {[%clk 0:03:00]} 5. Nc3 {[%clk 0:02:50]}  Nxc3 {[%clk 0:03:00]} 6. dxc3 {[%clk 0:02:51]}  Be7 {[%clk 0:03:01]} 7. Bd3 {[%clk 0:02:51]}  O-O {[%clk 0:03:01]} 8. Bf4 {[%clk 0:02:52]}  Nd7 {[%clk 0:02:59]} 9. Qd2 {[%clk 0:02:52]}  Nc5 {[%clk 0:02:59]} 10. Bc4 {[%clk 0:02:51]}  c6 {[%clk 0:02:58]} 11. O-O-O {[%clk 0:02:44]}  d5 {[%clk 0:02:58]} 12. Bd3 {[%clk 0:02:44]}  Bf6 {[%clk 0:02:51]} 13. h4 {[%clk 0:02:40]}  Bg4 {[%clk 0:02:50]} 14. Be2 {[%clk 0:02:20]}  Ne4 {[%clk 0:02:46]} 15. Qe1 {[%clk 0:02:17]}  Qa5 {[%clk 0:02:45]} 16. a3 {[%clk 0:01:58]}  Bxc3 {[%clk 0:02:44]} 17. Nd2 {[%clk 0:01:46]}  Rfe8 {[%clk 0:02:25]} 18. f3 {[%clk 0:01:39]}  Qb6 {[%clk 0:02:08]} 19. Nc4 {[%clk 0:01:11]}  dxc4 {[%clk 0:01:52]} 20. bxc3 {[%clk 0:01:08]}  Nf2 {[%clk 0:01:19]} 21. fxg4 {[%clk 0:00:51]}  Nxh1 {[%clk 0:01:19]} 22. Rd4 {[%clk 0:00:51]}  c5 {[%clk 0:01:10]} 23. Rd6 {[%clk 0:00:42]}  Qa5 {[%clk 0:01:11]} 24. Kb2 {[%clk 0:00:37]}  Rad8 {[%clk 0:01:09]} 25. Qd2 {[%clk 0:00:27]}  Rxd6 {[%clk 0:01:05]} 26. Bxd6 {[%clk 0:00:27]}  Qb6+ {[%clk 0:00:57]} 27. Ka2 {[%clk 0:00:23]}  Rd8 {[%clk 0:00:55]} 28. Qe1 {[%clk 0:00:20]}  Qxd6 {[%clk 0:00:55]} 29. Qxh1 {[%clk 0:00:20]}  Qd2 {[%clk 0:00:55]} 0-1


[Site "https://www.chess.com"]

[Event "Titled Tuesday Blitz May 10 Late 2022"]
[White "Ferreira, Vitor Hugo Vieira"]
[Black "Weber, Samuel"]
[WhiteFideId "2119765"]
[BlackFideId "12924008"]
[WhiteElo "2165"]
[BlackElo "2215"]
[Result "0-1"]
[Round "04"]
[TimeControl "180+1"]
[Date "2022.05.11"]
[WhiteClock "0:00:22"]
[BlackClock "0:00:16"]

1. d4 {[%clk 0:03:00]}  Nf6 {[%clk 0:02:56]} 2. c4 {[%clk 0:03:00]}  e6 {[%clk 0:02:56]} 3. Nf3 {[%clk 0:03:00]}  c5 {[%clk 0:02:51]} 4. d5 {[%clk 0:02:56]}  exd5 {[%clk 0:02:52]} 5. cxd5 {[%clk 0:02:56]}  d6 {[%clk 0:02:44]} 6. Nc3 {[%clk 0:02:56]}  g6 {[%clk 0:02:42]} 7. Bf4 {[%clk 0:02:56]}  Bg7 {[%clk 0:02:41]} 8. e3 {[%clk 0:02:57]}  O-O {[%clk 0:02:41]} 9. h3 {[%clk 0:02:57]}  Re8 {[%clk 0:02:40]} 10. Be2 {[%clk 0:02:57]}  Ne4 {[%clk 0:02:40]} 11. Nxe4 {[%clk 0:02:56]}  Rxe4 {[%clk 0:02:41]} 12. Qc2 {[%clk 0:02:55]}  Rb4 {[%clk 0:02:34]} 13. Rb1 {[%clk 0:02:55]}  Bf5 {[%clk 0:02:34]} 14. Bd3 {[%clk 0:02:54]}  Bxd3 {[%clk 0:02:34]} 15. Qxd3 {[%clk 0:02:54]}  Rxb2 {[%clk 0:02:34]} 16. Rxb2 {[%clk 0:02:54]}  Bxb2 {[%clk 0:02:34]} 17. Qb3 {[%clk 0:02:52]}  Qb6 {[%clk 0:02:34]} 18. Qa4 {[%clk 0:02:48]}  Na6 {[%clk 0:02:30]} 19. O-O {[%clk 0:02:46]}  Bf6 {[%clk 0:02:08]} 20. Nd2 {[%clk 0:02:44]}  Be7 {[%clk 0:01:51]} 21. Nc4 {[%clk 0:02:13]}  Qd8 {[%clk 0:01:26]} 22. Rb1 {[%clk 0:02:09]}  Rb8 {[%clk 0:01:20]} 23. Na5 {[%clk 0:01:54]}  Nb4 {[%clk 0:01:02]} 24. e4 {[%clk 0:01:53]}  b5 {[%clk 0:00:56]} 25. Qa3 {[%clk 0:01:53]}  Nc2 {[%clk 0:00:47]} 26. Qc3 {[%clk 0:01:50]}  b4 {[%clk 0:00:48]} 27. Qxc2 {[%clk 0:01:36]}  Qxa5 {[%clk 0:00:48]} 28. e5 {[%clk 0:01:37]}  Qd8 {[%clk 0:00:35]} 29. e6 {[%clk 0:01:37]}  fxe6 {[%clk 0:00:27]} 30. dxe6 {[%clk 0:01:36]}  Qf8 {[%clk 0:00:26]} 31. Qd2 {[%clk 0:01:29]}  Rd8 {[%clk 0:00:21]} 32. Bh6 {[%clk 0:01:28]}  Qf5 {[%clk 0:00:20]} 33. Re1 {[%clk 0:01:25]}  d5 {[%clk 0:00:20]} 34. Qb2 {[%clk 0:01:12]}  Qf6 {[%clk 0:00:20]} 35. Qc1 {[%clk 0:01:05]}  c4 {[%clk 0:00:20]} 36. h4 {[%clk 0:01:05]}  Qf5 {[%clk 0:00:18]} 37. Bf4 {[%clk 0:00:55]}  c3 {[%clk 0:00:17]} 38. Re5 {[%clk 0:00:54]}  Qf8 {[%clk 0:00:15]} 39. h5 {[%clk 0:00:51]}  d4 {[%clk 0:00:14]} 40. hxg6 {[%clk 0:00:51]}  hxg6 {[%clk 0:00:15]} 41. Bh6 {[%clk 0:00:50]}  Qf6 {[%clk 0:00:15]} 42. Bg5 {[%clk 0:00:41]}  Qxe5 {[%clk 0:00:15]} 43. Bxe7 {[%clk 0:00:42]}  d3 {[%clk 0:00:14]} 44. Qh6 {[%clk 0:00:35]}  Qe1+ {[%clk 0:00:14]} 45. Kh2 {[%clk 0:00:35]}  Qe5+ {[%clk 0:00:15]} 46. Kg1 {[%clk 0:00:26]}  Qxe6 {[%clk 0:00:13]} 47. Bxd8 {[%clk 0:00:26]}  d2 {[%clk 0:00:14]} 48. Bf6 {[%clk 0:00:22]}  Qxf6 {[%clk 0:00:13]} 49. Qe3 {[%clk 0:00:19]}  d1=Q+ {[%clk 0:00:13]} 50. Kh2 {[%clk 0:00:20]}  Qfd6+ {[%clk 0:00:14]} 51. g3 {[%clk 0:00:20]}  Qh5+ {[%clk 0:00:14]} 52. Kg2 {[%clk 0:00:20]}  Qdd5+ {[%clk 0:00:14]} 53. f3 {[%clk 0:00:20]}  Qhxf3+ {[%clk 0:00:15]} 54. Qxf3 {[%clk 0:00:21]}  Qxf3+ {[%clk 0:00:16]} 55. Kxf3 {[%clk 0:00:22]}  c2 {[%clk 0:00:16]} 0-1


[Site "https://www.chess.com"]

[Event "Titled Tuesday Blitz May 10 Late 2022"]
[White "Hoffmann, Asa"]
[Black "Tomaszewski, Kacper"]
[WhiteFideId "2001470"]
[BlackFideId "1127373"]
[WhiteElo "2117"]
[BlackElo "2153"]
[Result "1/2-1/2"]
[Round "04"]
[TimeControl "180+1"]
[Date "2022.05.11"]
[WhiteClock "0:00:12"]
[BlackClock "0:00:03"]

1. d4 {[%clk 0:02:57]}  d5 {[%clk 0:02:59]} 2. Bg5 {[%clk 0:02:50]}  c5 {[%clk 0:02:54]} 3. dxc5 {[%clk 0:02:48]}  h6 {[%clk 0:02:47]} 4. Bh4 {[%clk 0:02:47]}  Nf6 {[%clk 0:02:35]} 5. c3 {[%clk 0:02:46]}  e6 {[%clk 0:02:31]} 6. b4 {[%clk 0:02:43]}  a5 {[%clk 0:02:31]} 7. Nd2 {[%clk 0:02:36]}  b6 {[%clk 0:02:27]} 8. e4 {[%clk 0:02:28]}  dxe4 {[%clk 0:02:24]} 9. Bxf6 {[%clk 0:02:23]}  Qxf6 {[%clk 0:02:22]} 10. Nxe4 {[%clk 0:02:22]}  Qe5 {[%clk 0:02:17]} 11. Bb5+ {[%clk 0:02:08]}  Bd7 {[%clk 0:02:16]} 12. Qe2 {[%clk 0:02:08]}  axb4 {[%clk 0:02:12]} 13. Nf3 {[%clk 0:02:06]}  Qf4 {[%clk 0:02:02]} 14. Bxd7+ {[%clk 0:01:58]}  Nxd7 {[%clk 0:02:01]} 15. c6 {[%clk 0:01:58]}  Nc5 {[%clk 0:01:59]} 16. Nxc5 {[%clk 0:01:51]}  Bxc5 {[%clk 0:02:00]} 17. O-O {[%clk 0:01:47]}  O-O {[%clk 0:01:58]} 18. cxb4 {[%clk 0:01:46]}  Qxb4 {[%clk 0:01:54]} 19. Ne5 {[%clk 0:01:31]}  Bd6 {[%clk 0:01:45]} 20. Nd7 {[%clk 0:01:25]}  Rfd8 {[%clk 0:01:23]} 21. Rab1 {[%clk 0:01:18]}  Qa4 {[%clk 0:01:12]} 22. Nxb6 {[%clk 0:01:14]}  Qxa2 {[%clk 0:01:10]} 23. Qxa2 {[%clk 0:01:14]}  Rxa2 {[%clk 0:01:09]} 24. Rfd1 {[%clk 0:01:11]}  Rc2 {[%clk 0:01:04]} 25. Nd7 {[%clk 0:01:06]}  Rxc6 {[%clk 0:00:59]} 26. Ne5 {[%clk 0:00:50]}  Rcc8 {[%clk 0:00:56]} 27. Nf3 {[%clk 0:00:44]}  Be7 {[%clk 0:00:55]} 28. g3 {[%clk 0:00:42]}  Rxd1+ {[%clk 0:00:53]} 29. Rxd1 {[%clk 0:00:42]}  Rd8 {[%clk 0:00:52]} 30. Rxd8+ {[%clk 0:00:39]}  Bxd8 {[%clk 0:00:53]} 31. Kf1 {[%clk 0:00:38]}  Bb6 {[%clk 0:00:52]} 32. Ke2 {[%clk 0:00:37]}  Kf8 {[%clk 0:00:52]} 33. Ne5 {[%clk 0:00:37]}  Ke7 {[%clk 0:00:50]} 34. f4 {[%clk 0:00:36]}  Bc7 {[%clk 0:00:47]} 35. Nd3 {[%clk 0:00:36]}  Kf6 {[%clk 0:00:44]} 36. h3 {[%clk 0:00:36]}  h5 {[%clk 0:00:40]} 37. g4 {[%clk 0:00:34]}  hxg4 {[%clk 0:00:38]} 38. hxg4 {[%clk 0:00:34]}  g5 {[%clk 0:00:39]} 39. fxg5+ {[%clk 0:00:33]}  Kxg5 {[%clk 0:00:38]} 40. Kf3 {[%clk 0:00:33]}  Bd6 {[%clk 0:00:37]} 41. Nf2 {[%clk 0:00:33]}  Be7 {[%clk 0:00:33]} 42. Ne4+ {[%clk 0:00:31]}  Kg6 {[%clk 0:00:31]} 43. Kf4 {[%clk 0:00:28]}  Bd8 {[%clk 0:00:30]} 44. Kf3 {[%clk 0:00:27]}  Ba5 {[%clk 0:00:30]} 45. Nd6 {[%clk 0:00:25]}  Bb4 {[%clk 0:00:29]} 46. Ne4 {[%clk 0:00:25]}  Ba3 {[%clk 0:00:29]} 47. Ng3 {[%clk 0:00:25]}  Bc1 {[%clk 0:00:28]} 48. Ne4 {[%clk 0:00:24]}  Kg7 {[%clk 0:00:23]} 49. Ng3 {[%clk 0:00:24]}  Kf8 {[%clk 0:00:23]} 50. Ne4 {[%clk 0:00:24]}  Ke7 {[%clk 0:00:23]} 51. Ng3 {[%clk 0:00:24]}  Kd6 {[%clk 0:00:22]} 52. Ne4+ {[%clk 0:00:24]}  Kd5 {[%clk 0:00:23]} 53. Ng3 {[%clk 0:00:23]}  Ke5 {[%clk 0:00:21]} 54. Ne4 {[%clk 0:00:22]}  Bf4 {[%clk 0:00:20]} 55. Nf2 {[%clk 0:00:21]}  Bh6 {[%clk 0:00:19]} 56. Nd3+ {[%clk 0:00:21]}  Kd4 {[%clk 0:00:18]} 57. Nf2 {[%clk 0:00:20]}  Bf8 {[%clk 0:00:14]} 58. Ne4 {[%clk 0:00:19]}  Be7 {[%clk 0:00:14]} 59. Ng3 {[%clk 0:00:19]}  Bh4 {[%clk 0:00:14]} 60. Ne2+ {[%clk 0:00:19]}  Kd3 {[%clk 0:00:13]} 61. Nf4+ {[%clk 0:00:19]}  Kd4 {[%clk 0:00:09]} 62. Ne2+ {[%clk 0:00:19]}  Ke5 {[%clk 0:00:10]} 63. Nf4 {[%clk 0:00:18]}  Bg5 {[%clk 0:00:09]} 64. Ne2 {[%clk 0:00:18]}  f6 {[%clk 0:00:09]} 65. Ng3 {[%clk 0:00:18]}  Bh4 {[%clk 0:00:09]} 66. Ne4 {[%clk 0:00:17]}  f5 {[%clk 0:00:07]} 67. gxf5 {[%clk 0:00:17]}  exf5 {[%clk 0:00:08]} 68. Nc5 {[%clk 0:00:16]}  Kd4 {[%clk 0:00:07]} 69. Ne6+ {[%clk 0:00:15]}  Kd5 {[%clk 0:00:06]} 70. Nf4+ {[%clk 0:00:15]}  Kd4 {[%clk 0:00:06]} 71. Ne6+ {[%clk 0:00:14]}  Ke5 {[%clk 0:00:07]} 72. Ng7 {[%clk 0:00:13]}  Bd8 {[%clk 0:00:03]} 73. Nxf5 {[%clk 0:00:12]} 1/2-1/2


[Site "https://www.chess.com"]

[Event "Titled Tuesday Blitz May 10 Late 2022"]
[White "Holt, Conrad"]
[Black "Godzwon, Iwo"]
[WhiteFideId "2034387"]
[BlackFideId "21802483"]
[WhiteElo "2586"]
[BlackElo "2201"]
[Result "1-0"]
[Round "04"]
[TimeControl "180+1"]
[Date "2022.05.10"]
[WhiteClock "0:01:55"]
[BlackClock "0:01:26"]

1. d4 {[%clk 0:02:56]}  Nf6 {[%clk 0:02:57]} 2. c4 {[%clk 0:02:56]}  e6 {[%clk 0:02:58]} 3. Nc3 {[%clk 0:02:56]}  Bb4 {[%clk 0:02:58]} 4. Qc2 {[%clk 0:02:56]}  O-O {[%clk 0:02:58]} 5. e4 {[%clk 0:02:57]}  Nc6 {[%clk 0:02:56]} 6. Nf3 {[%clk 0:02:56]}  d6 {[%clk 0:02:56]} 7. e5 {[%clk 0:02:52]}  dxe5 {[%clk 0:02:52]} 8. dxe5 {[%clk 0:02:53]}  Nd7 {[%clk 0:02:52]} 9. Bf4 {[%clk 0:02:52]}  Qe7 {[%clk 0:02:29]} 10. Bd3 {[%clk 0:02:49]}  h6 {[%clk 0:02:24]} 11. a3 {[%clk 0:02:41]}  Bxc3+ {[%clk 0:02:23]} 12. Qxc3 {[%clk 0:02:42]}  Nc5 {[%clk 0:02:22]} 13. Bc2 {[%clk 0:02:42]}  a5 {[%clk 0:02:21]} 14. O-O {[%clk 0:02:41]}  b6 {[%clk 0:02:18]} 15. b4 {[%clk 0:02:34]}  Nd7 {[%clk 0:02:07]} 16. b5 {[%clk 0:02:16]}  Nd8 {[%clk 0:02:03]} 17. Qd3 {[%clk 0:02:15]}  f5 {[%clk 0:01:48]} 18. exf6 {[%clk 0:02:16]}  Nxf6 {[%clk 0:01:48]} 19. Ne5 {[%clk 0:02:16]}  Re8 {[%clk 0:01:42]} 20. Qg6 {[%clk 0:02:04]}  Nf7 {[%clk 0:01:27]} 21. Rfe1 {[%clk 0:01:59]}  Nxe5 {[%clk 0:01:25]} 22. Bxe5 {[%clk 0:01:57]}  Ra7 {[%clk 0:01:25]} 23. Bxf6 {[%clk 0:01:55]}  Qxf6 {[%clk 0:01:26]} 24. Qxe8+ {[%clk 0:01:55]} 1-0


[Site "https://www.chess.com"]